Cogmind - Beta 16 @@@ ROGUE MODE // 2025.10.29 @ 19:29:12 Player: Tuja Result: Destroyed by S-27 Virus with Autogun Performance ------------- Evolutions (5) 2500 Regions Visited (11) 2200 Robots Destroyed (107) 535 Value Destroyed (4979) 4979 Prototype IDs (0) 0 Alien Tech Used (0) 0 Bonus (1806) 1806 TOTAL SCORE: 12020 Bonus ------- High Alert Combat Kills 331 Follower Combat Kills 75 Entered Garrisons 400 Used RIF Installer 1000 Cogmind --------- Core Integrity 0/1000 Matter 259/300 Energy 98/100 System Corruption 18% Temperature Cool (0) Movement Core (50) Location -5/Upper Caves Parts ------- > --- POWER (1) -------- (None) > --- PROPULSION (5) --- (None) > --- UTILITY (8) ------ Improved Signal Interpreter Advanced Melee Analysis Suite Target Analyzer > --- WEAPON (3) ------- (None) > --- INVENTORY (5) ---- Antigrav System Advanced Weight Redist. System System Shield Peak State ------------ > --- POWER ------------ Light Antimatter Reactor > --- PROPULSION ------- Carbon-fiber Leg Carbon-fiber Leg Carbon-fiber Leg Biometal Leg Biometal Leg > --- UTILITY ---------- High-capacity Storage Unit IFF Parser Layered Medium Armor Plating Layered Medium Armor Plating Hacking Suite System Shield > --- WEAPON ----------- Minigun Heavy Linear Accelerator > --- INVENTORY -------- Improved Deuterium Engine Carbon-fiber Leg Medium Storage Unit Advanced Weight Redist. System Improved Signal Interpreter Reaction Control System Advanced Phase Shifter Layered Medium Armor Plating Layered Medium Armor Plating Layered Medium Armor Plating System Shield System Shield Relay Coupler [NC] Relay Coupler [Brawler] Minigun Heavy Linear Accelerator Datajack Great Maul [Rating: 80] Favorites ----------- Power Light Nuclear Core Engine Improved Deuterium Engine Power Core Light Nuclear Core Reactor Light Antimatter Reactor Propulsion Light Treads Treads Light Treads Leg Carbon-fiber Leg Wheel Compact Wheel Hover Unit Gravmag System Flight Unit Field Propulsion Drive Utility High-capacity Storage Unit Device Improved Heat Sink Storage High-capacity Storage Unit Processor Advanced Melee Analysis Suite Hackware Hacking Suite Protection Layered Medium Armor Plating Weapon Autogun Energy Gun Medium Laser Energy Cannon Heavy Plasma Cannon Ballistic Gun Autogun Ballistic Cannon Heavy Linear Accelerator Special Weapon Mining Laser Impact Weapon Great Maul Slashing Weapon Katana Build | -11 -10 -10 -9 -8 -8 -8 -7 -7 -6 -5 -5 ------- Run | Yrd Mat Min Mat Mat Gar Mat Fac Gar Fac Fac Upp Slots Evolved 10 | . . . 2 2 . . 2 . 2 2 . Power . | . . . . . . . . . . . . Propulsion 3 | . . . . 1 . . 1 . 1 . . Utility 6 | . . . 2 . . . 1 . 1 2 . Weapon 1 | . . . . 1 . . . . . . . Parts Attached 94 | 7 . . 8 12 13 4 2 14 27 7 . Power 9 | 1 . . 2 1 1 . . 2 1 1 . Engine 5 | 1 . . 2 1 . . . . 1 . . Core 3 | . . . . . 1 . . 1 . 1 . Reactor 1 | . . . . . . . . 1 . . . Propulsion 32 | 2 . . . 4 6 1 1 4 11 3 . Treads 9 | 2 . . . . 3 1 1 2 . . . Leg 17 | . . . . 4 3 . . 2 8 . . Wheel 3 | . . . . . . . . . 3 . . Hover 1 | . . . . . . . . . . 1 . Flight 2 | . . . . . . . . . . 2 . Utility 28 | 2 . . 4 3 1 1 1 4 11 1 . Device 10 | 1 . . 2 2 . . . . 5 . . Storage 2 | 1 . . 1 . . . . . . . . Processor 3 | . . . . . . . . . 3 . . Hackware 3 | . . . 1 . . . 1 . . 1 . Protection 10 | . . . . 1 1 1 . 4 3 . . Artifact . | . . . . . . . . . . . . Weapon 25 | 2 . . 2 4 5 2 . 4 4 2 . Energy Gun 4 | 2 . . . . . . . . 1 1 . Energy Cannon 2 | . . . 1 . . . . . 1 . . Ballistic Gun 14 | . . . 1 3 4 2 . 2 1 1 . Ballistic Cannon 2 | . . . . . . . . 1 1 . . Launcher . | . . . . . . . . . . . . Special Weapon 1 | . . . . 1 . . . . . . . Impact Weapon 1 | . . . . . . . . 1 . . . Slashing Weapon 1 | . . . . . 1 . . . . . . Piercing Weapon . | . . . . . . . . . . . . Special Melee Weapon . | . . . . . . . . . . . . Unidentified Prototypes . | . . . . . . . . . . . . Corrupted Parts 1 | . . . . . . . . . . 1 . System Corruption 9 | . . . . . . . . . . 9 . Parts Lost 71 | . . . 4 8 8 2 . 9 22 17 1 Power 7 | . . . 1 1 1 . . 2 1 1 . Propulsion 26 | . . . . 3 3 . . 4 8 7 1 Utility 20 | . . . 1 2 1 1 . 2 8 5 . Weapon 18 | . . . 2 2 3 1 . 1 5 4 . Highest Loss Streak 17 | . . . 3 5 7 2 . 4 14 17 1 To Critical Strikes . | . . . . . . . . . . . . Average Backups 16 | 3 5 6 9 19 19 19 19 18 17 14 3 Power . | . 1 1 . . 1 1 1 . 1 1 . Propulsion 2 | 1 2 2 2 3 3 2 2 1 1 3 1 Utility 9 | . 1 1 3 6 8 10 10 11 11 7 2 Weapon 3 | . 1 2 2 8 5 4 4 3 2 1 . Tool/Special . | . . . . . . . . . . . . Unused Backups 30 | . . . 4 . 1 3 . 6 2 12 2 Power 2 | . . . 1 . . . . . . 1 . Propulsion 7 | . . . 1 . 1 1 . 2 . 2 . Utility 16 | . . . 1 . . . . 3 2 8 2 Weapon 4 | . . . 1 . . 2 . 1 . . . Tool/Special 1 | . . . . . . . . . . 1 . Average Slot Usage (%) 83 | . 100 100 91 90 95 99 99 90 61 66 23 Engine 3 | . 14 14 11 7 . . . . 2 3 . Core 2 | . . . . . 7 9 7 4 . . . Treads 14 | . 28 28 22 4 19 27 30 25 1 . . Leg 6 | . . . . 18 6 . . 1 11 11 . Wheel 1 | . . . . . . . . . 5 7 . Device 7 | . 14 14 17 15 8 9 7 1 3 5 . Storage 7 | . 14 14 11 9 9 9 7 7 6 3 . Processor 2 | . . . . . . . . . 7 17 17 Hackware 8 | . . . 7 9 9 9 14 15 2 2 . Protection 7 | . . . . 2 8 8 7 13 6 3 . Energy Gun 1 | . 28 28 7 . . . . . . . . Energy Cannon 1 | . . . 6 3 . . . . 1 3 . Ballistic Gun 12 | . . . 7 20 24 27 23 13 3 3 . Ballistic Cannon 1 | . . . . . . . . 4 1 . . Peak Build Rating 80 | 7 7 7 16 30 28 31 38 72 80 66 18 Average Rating 33 | 5 6 7 11 23 24 29 35 46 41 42 16 On Entrance 25 | . 7 7 7 16 28 26 31 38 72 52 18 Avg Prop Armor Cover (%) 12 | . . . . . . . . 11 12 12 . Naked Turns . | . . . . . . . . . . . . Heaviest Build 99 | 15 15 15 51 60 60 58 58 98 99 74 . Greatest Support 101 | 40 40 40 40 40 60 62 82 82 101 26 7 Greatest Overweight (x) 22 | 1 . . 1 2 4 . . 3 22 3 . Average Overweight (x) . | . . . . 1 . . . . 2 . . Largest Inventory Capacity 20 | 8 8 8 20 20 20 20 20 20 20 20 5 Average Capacity 18 | 7 8 8 12 20 20 20 20 20 20 15 5 Most Carried 20 | 5 6 7 19 20 20 20 20 20 20 20 3 Average Carried 17 | 3 5 6 9 19 19 19 19 19 17 13 3 Final Capacity 20 | 8 8 8 20 20 20 20 20 20 20 5 5 Final Carried 20 | 5 6 7 19 20 20 20 20 20 20 3 3 Class Distribution -------------------- 30% | Mutant 28% | Hacker-Tank 20% | Scavenger-Tank 13% | Scavenger-Mutant Dominant Class ---------------- Mutant | -10/Materials Mutant | -10/Mines Mutant | -9/Materials Scavenger-Skirmisher | -8/Materials Scavenger-Tank | -8/Garrison Scavenger-Tank | -8/Materials Scavenger-Tank | -7/Factory Hacker-Tank | -7/Garrison Mutant | -6/Factory Scavenger-Mutant | -5/Factory Mutant | -5/Upper Caves Resources | -11 -10 -10 -9 -8 -8 -8 -7 -7 -6 -5 -5 ----------- Run | Yrd Mat Min Mat Mat Gar Mat Fac Gar Fac Fac Upp Matter Collected 3429 | 196 . 42 129 466 557 184 83 957 748 67 . Remotely . | . . . . . . . . . . . . Salvage Created 4201 | 50 . . 295 641 803 341 105 1097 802 67 . Parts 200 | 5 . . 18 17 40 19 7 53 40 1 . Haulers Intercepted . | . . . . . . . . . . . . Recyclers Shooed 1 | . . . . . . . . . 1 . . Parts Field Recycled . | . . . . . . . . . . . . Retrieved Matter . | . . . . . . . . . . . . Parts Self-Destructed . | . . . . . . . . . . . . Prevented . | . . . . . . . . . . . . Parts Restored . | . . . . . . . . . . . . Kills | -11 -10 -10 -9 -8 -8 -8 -7 -7 -6 -5 -5 ------- Run | Yrd Mat Min Mat Mat Gar Mat Fac Gar Fac Fac Upp Combat Hostiles Destroyed 96 | . . . 10 14 15 6 4 24 23 . . Melee 4 | . . . . . . . . . 4 . . Guns 65 | . . . 5 12 15 6 4 18 5 . . Cannons 24 | . . . 5 2 . . . 6 11 . . Classes Destroyed 12 | 1 . . 3 2 2 1 . . 3 . . Builder 3 | . . . . . . . . . 3 . . Tunneler 2 | 2 . . . . . . . . . . . Recycler 1 | . . . . . . . . . 1 . . Operator 2 | . . . 1 . . . . . 1 . . Watcher 3 | . . . . . . 1 . . . 2 . Swarmer 26 | . . . 6 3 . . 4 5 8 . . Grunt 48 | . . . 4 9 9 3 . 14 9 . . Brawler 3 | . . . . . 1 . . 2 . . . Duelist 1 | . . . . . 1 . . . . . . Sentry 12 | . . . . 1 4 2 . 3 2 . . Hunter 2 | . . . . 1 . 1 . . . . . Programmer 4 | . . . . . . . . . 4 . . Best Kill Streak 7 | 2 . . 4 3 7 2 4 4 4 1 . Combat Bots Only 7 | . . . 4 3 7 2 4 4 4 . . Max Kills in Single Turn 2 | 1 . . 1 1 2 1 2 2 2 1 . Gunslinging 1 | . . . . . 1 . 1 . . . . Exploded . | . . . . . . . . . . . . Melee 1 | . . . . . . . . . 1 . . Uniques/NPCs Destroyed . | . . . . . . . . . . . . Combat | -11 -10 -10 -9 -8 -8 -8 -7 -7 -6 -5 -5 -------- Run | Yrd Mat Min Mat Mat Gar Mat Fac Gar Fac Fac Upp Hostile Shots Fired 1152 | . . . 86 74 76 30 16 219 527 114 10 Missed 317 | . . . 22 16 23 4 5 73 143 28 3 Hits 835 | . . . 64 58 53 26 11 146 384 86 7 Melee 9 | . . . . . 9 . . . . . . Projectile 826 | . . . 64 58 44 26 11 146 384 86 7 AOE 1 | . . . . . 1 . . . . . . Critical Strikes 28 | . . . . 2 5 1 . 2 10 8 . Part Disruptions 2 | . . . . . . . . . . 2 . Damage Taken 11454 | . . . 655 855 996 397 162 1703 4678 1903 105 Core 2151 | . . . 39 113 125 16 14 96 743 931 74 Absorbed by Shields . | . . . . . . . . . . . . Redirected to Shielding 51 | . . . . . 51 . . . . . . Core Remaining (%) 73 | 100 . 100 90 . . 53 . 84 12 . . Volleys Fired 271 | 5 . . 30 50 36 17 5 56 63 9 . Largest 3 | 2 . . 2 3 3 3 3 3 2 3 . Hottest 151 | 90 . . 90 146 69 71 71 95 139 151 . Shots Fired 633 | 10 . . 59 142 97 51 15 142 99 18 . Gun 521 | 10 . . 51 114 97 51 15 116 55 12 . Cannon 109 | . . . 8 25 . . . 26 44 6 . Launcher . | . . . . . . . . . . . . Special 3 | . . . . 3 . . . . . . . Kinetic 521 | . . . 22 114 97 51 15 142 70 10 . Thermal 99 | 5 . . 29 28 . . . . 29 8 . Explosive . | . . . . . . . . . . . . Electromagnetic 13 | 5 . . 8 . . . . . . . . Robot Hit Streak 18 | 2 . . 6 12 18 11 4 11 9 8 . Robot Miss Streak 9 | 2 . . 2 3 4 2 2 9 6 3 . Penetration Max . | . . . . . . . . . . . . Secondary Targets 13 | . . . 2 1 7 . 1 2 . . . Max Gunslinging Chain 1 | . . . 1 1 1 . 1 1 . . . Shots Hit Robots 426 | 4 . . 34 91 72 38 8 87 79 13 . Core Hits 224 | 2 . . 13 35 35 18 6 53 56 6 . Critical Kills 3 | . . . . . . 2 . . 1 . . Critical Parts Destroyed 4 | . . . . . . . . 1 3 . . Critical Strikes 11 | . . . . . . 2 . 2 7 . . Meltdown 1 | . . . . . . . . . 1 . . Destroy 3 | . . . . . . 2 . 1 . . . Blast 3 | . . . . . . . . 1 2 . . Smash 4 | . . . . . . . . . 4 . . Melee Attacks 39 | . . . . . 8 . . 2 29 . . Impact 31 | . . . . . . . . 2 29 . . Slashing 8 | . . . . . 8 . . . . . . Piercing . | . . . . . . . . . . . . Sneak Attacks . | . . . . . . . . . . . . Combat Hostiles . | . . . . . . . . . . . . Follow-up Attacks . | . . . . . . . . . . . . Damage Inflicted 9757 | 56 . . 379 1268 1099 545 153 2215 3661 381 . Guns 5331 | 56 . . 289 933 1099 545 153 1278 736 242 . Cannons 3395 | . . . 90 334 . . . 937 1895 139 . Explosions 246 | . . . . . . . . . 246 . . Melee 721 | . . . . . . . . . 721 . . Ramming 64 | . . . . 1 . . . . 63 . . Kinetic 7312 | . . . 109 933 1099 545 153 2215 2040 218 . Thermal 1549 | 13 . . 202 334 . . . . 837 163 . Explosive . | . . . . . . . . . . . . Electromagnetic 111 | 43 . . 68 . . . . . . . . Impact 721 | . . . . . . . . . 721 . . Slashing . | . . . . . . . . . . . . Piercing . | . . . . . . . . . . . . Highest Corruption 18 | . . . . . . . . . . 18 18 Average Corruption 15 | . . . . . . . . . . 15 18 Corruption Purged . | . . . . . . . . . . . . Corruption Blocked . | . . . . . . . . . . . . Effects 10 | . . . . . . . . . . 8 2 Message Errors 2 | . . . . . . . . . . 1 1 Matter Fused 1 | . . . . . . . . . . 1 . Heat Flow Errors 2 | . . . . . . . . . . 2 . Parts Rejected 1 | . . . . . . . . . . 1 . Data Loss (minor) 2 | . . . . . . . . . . 2 . Misdirections 2 | . . . . . . . . . . 1 1 Overload Shots . | . . . . . . . . . . . . Overflow Damage 673 | . . . . . . . . 116 557 . . Projectiles 364 | . . . . . . . . 116 248 . . Explosions 151 | . . . . . . . . . 151 . . Melee 158 | . . . . . . . . . 158 . . Knockbacks 13 | . . . . . . . . 4 9 . . Impact 1 | . . . . . . . . . 1 . . Kinetic 12 | . . . . . . . . 4 8 . . Secondary . | . . . . . . . . . . . . Self-Inflicted Damage 143 | . . . . . . . . . 143 . . Shots 2 | . . . . . . . . . 2 . . Rammed . | . . . . . . . . . . . . Targets Rammed 7 | . . . . 1 . . . . 6 . . Kicked 7 | . . . . 1 . . . . 6 . . Crushed . | . . . . . . . . . . . . Highest Temperature 483 | 72 . . 176 206 23 25 . 97 483 113 . Average Temperature 84 | 37 . . 87 64 6 11 . 25 161 32 . Received Heat Transfer 3146 | . . . 264 369 414 144 . 396 1256 303 . Effects 7 | . . . . . . . . . 7 . . Shutdowns 1 | . . . . . . . . . 1 . . Interference 3 | . . . . . . . . . 3 . . Damage (minor) 1 | . . . . . . . . . 1 . . Damage (major) 2 | . . . . . . . . . 2 . . Siege Activations . | . . . . . . . . . . . . Martial Activations . | . . . . . . . . . . . . Shielding Activations . | . . . . . . . . . . . . Robots Disrupted . | . . . . . . . . . . . . Combat Hostiles . | . . . . . . . . . . . . Robots Corrupted 1 | . . . . . . . . . 1 . . Combat Hostiles 1 | . . . . . . . . . 1 . . Parts Fried . | . . . . . . . . . . . . Impact Corruptions 7 | . . . . . . . . . 7 . . Robots Melted 2 | . . . . . . . . . 2 . . Combat Hostiles 2 | . . . . . . . . . 2 . . Parts Melted 7 | . . . 2 . . . . . 5 . . Heat Transferred 2589 | 37 . . 518 703 . . . . 1081 250 . Parts Sabotaged . | . . . . . . . . . . . . Parts Stolen . | . . . . . . . . . . . . Parts Stripped . | . . . . . . . . . . . . Power Chain Reactions . | . . . . . . . . . . . . Alert | -11 -10 -10 -9 -8 -8 -8 -7 -7 -6 -5 -5 ------- Run | Yrd Mat Min Mat Mat Gar Mat Fac Gar Fac Fac Upp Maximum Alert Level 2 | . . . . 1 2 1 . 2 2 1 . Low Security (%) 36 | 100 100 100 100 96 10 46 100 16 . 39 . Level 1 26 | . . . . 3 51 53 . 19 30 60 . Level 2 36 | . . . . . 37 . . 63 69 . . Level 3 . | . . . . . . . . . . . . Level 4 . | . . . . . . . . . . . . Level 5 . | . . . . . . . . . . . . High Security . | . . . . . . . . . . . . Max Security . | . . . . . . . . . . . . Peak Influence 681 | 10 . . 60 231 516 250 92 681 647 301 . Initial 357 | . . . . . 144 222 78 50 357 301 . Average 296 | . . . 22 108 351 203 60 423 451 189 . Influence Increases 3472 | 10 . . 264 511 452 177 102 801 1000 155 . Destroy 0b10 Robot/C 1980 | . . . 200 280 300 120 80 540 460 . . Destroy 0b10 Robot/NC 60 | 10 . . 5 . . 5 . 5 25 10 . Destroy Leader 296 | . . . 40 60 . 42 10 40 100 4 . Allied During Kill 5 | . . . . . . . . 5 . . . Successful Hack 29 | . . . 4 . . 9 12 . 4 . . Disable Machine 165 | . . . . . . . . . 165 . . Anti-Garrison Action 300 | . . . . . 150 . . 150 . . . Destroy Structure 112 | . . . . 6 2 1 . 16 81 6 . Partial Spotted 15 | . . . . . . . . . . 15 . Lose Combat Pursuer 510 | . . . 15 165 . . . 45 165 120 . Influence Decreases 3416 | 10 . . 264 288 219 460 203 192 1066 664 50 Entered New Map 1108 | . . . . . 79 234 95 22 324 314 40 Time Decay 1411 | 10 . . 225 218 . 206 50 . 522 180 . Lost Part 699 | . . . 39 70 80 20 . 90 220 170 10 Lost Ally 140 | . . . . . 60 . . 80 . . . Purge Threat 58 | . . . . . . . 58 . . . . Squads Dispatched 10 | . 1 . 2 2 . . . . 4 1 . Investigation 3 | . 1 . 1 1 . . . . . . . Extermination 4 | . . . . . . . . . 3 1 . Reinforcement 3 | . . . 1 1 . . . . 1 . . Assault . | . . . . . . . . . . . . Garrison . | . . . . . . . . . . . . Intercept . | . . . . . . . . . . . . Searches Triggered . | . . . . . . . . . . . . Construction Impeded . | . . . . . . . . . . . . Haulers Reinforced . | . . . . . . . . . . . . Active Scanning Responses . | . . . . . . . . . . . . Cargo Convoy Interrupts . | . . . . . . . . . . . . Stealth | -11 -10 -10 -9 -8 -8 -8 -7 -7 -6 -5 -5 --------- Run | Yrd Mat Min Mat Mat Gar Mat Fac Gar Fac Fac Upp Distress Signals 5 | . . . . 2 . 1 . . 1 1 . Communications Jammed . | . . . . . . . . . . . . Distress Signals . | . . . . . . . . . . . . Times Spotted 151 | . . . 12 20 18 10 4 31 37 14 5 Peak Tracking Total 9 | . . . 4 8 6 3 4 4 8 9 5 Tactical Retreats 18 | . . . 1 6 . . . 2 7 2 . Traps | -11 -10 -10 -9 -8 -8 -8 -7 -7 -6 -5 -5 ------- Run | Yrd Mat Min Mat Mat Gar Mat Fac Gar Fac Fac Upp Traps Triggered 8 | . 2 . 1 . . . . 4 . 1 . Indirectly . | . . . . . . . . . . . . Trap Hack Attempts . | . . . . . . . . . . . . Triggered . | . . . . . . . . . . . . Disarmed . | . . . . . . . . . . . . Reprogrammed . | . . . . . . . . . . . . Reused . | . . . . . . . . . . . . Traps Extracted . | . . . . . . . . . . . . Installed . | . . . . . . . . . . . . Triggered . | . . . . . . . . . . . . Machines | -11 -10 -10 -9 -8 -8 -8 -7 -7 -6 -5 -5 ---------- Run | Yrd Mat Min Mat Mat Gar Mat Fac Gar Fac Fac Upp Machines Disabled 15 | . . . . . 3 . . 1 11 . . Max in Single Turn 5 | . . . . . 1 . . 1 5 . . Garrison Access 2 | . . . . . . . . . 1 1 . Garrison Relay 4 | . . . . . 3 . . 1 . . . Machines Repaired . | . . . . . . . . . . . . Machines Dismantled . | . . . . . . . . . . . . Machines Sabotaged . | . . . . . . . . . . . . Overloaded Fab Kills . | . . . . . . . . . . . . Hacking | -11 -10 -10 -9 -8 -8 -8 -7 -7 -6 -5 -5 --------- Run | Yrd Mat Min Mat Mat Gar Mat Fac Gar Fac Fac Upp Machines Accessed 16 | . . . 4 2 . 2 2 . 4 2 . Terminals 8 | . . . 4 . . 1 1 . 1 1 . Fabricators 1 | . . . . . . . . . 1 . . Repair Stations . | . . . . . . . . . . . . Recycling Units 1 | . . . . . . . . . 1 . . Scanalyzers 2 | . . . . 1 . 1 . . . . . Garrison Access 4 | . . . . 1 . . 1 . 1 1 . Total Hacks 32 | . . . 10 9 . 3 3 . 5 2 . Successful 20 | . . . 4 7 . 3 3 . 2 1 . Failed 12 | . . . 6 2 . . . . 3 1 . Catastrophic 3 | . . . 1 . . . . . 1 1 . Database Lockouts . | . . . . . . . . . . . . Manual 11 | . . . 8 . . 1 . . 1 1 . Terminals 15 | . . . 10 . . 1 2 . 1 1 . Fabricators 2 | . . . . . . . . . 2 . . Repair Stations . | . . . . . . . . . . . . Recycling Units 1 | . . . . . . . . . 1 . . Scanalyzers 9 | . . . . 7 . 2 . . . . . Garrison Access 5 | . . . . 2 . . 1 . 1 1 . Terminal Hacks 4 | . . . 1 . . 1 2 . . . . Terminal Index 1 | . . . 1 . . . . . . . . Garrison Index 1 | . . . . . . 1 . . . . . Unreport Threat 1 | . . . . . . . 1 . . . . Locate Traps 1 | . . . . . . . 1 . . . . Fabricator Hacks 1 | . . . . . . . . . 1 . . Build 1 | . . . . . . . . . 1 . . Repair Station Hacks . | . . . . . . . . . . . . Recycling Unit Hacks . | . . . . . . . . . . . . Scanalyzer 8 | . . . . 6 . 2 . . . . . Insert Component 2 | . . . . 2 . . . . . . . Analyze 2 | . . . . 2 . . . . . . . Retrieve Study 4 | . . . . 2 . 2 . . . . . Garrison Access Hacks 4 | . . . . 1 . . 1 . 1 1 . Unlock Access 2 | . . . . 1 . . 1 . . . . Seal Access 2 | . . . . . . . . . 1 1 . Unauthorized Hacks 3 | . . . 3 . . . . . . . . Terminals 3 | . . . 3 . . . . . . . . Botnet 3 | . . . 3 . . . . . . . . Fabricators . | . . . . . . . . . . . . Repair Stations . | . . . . . . . . . . . . Recycling Units . | . . . . . . . . . . . . Scanalyzers . | . . . . . . . . . . . . Garrison Access . | . . . . . . . . . . . . Data Cores Recovered . | . . . . . . . . . . . . Used . | . . . . . . . . . . . . Hacking Detections 12 | . . . 4 2 . 2 1 . 2 1 . Full Trace Events 1 | . . . . 1 . . . . . . . Feedback Events . | . . . . . . . . . . . . Feedback Blocked . | . . . . . . . . . . . . Robot Schematics Acquired . | . . . . . . . . . . . . Robots Built . | . . . . . . . . . . . . Authchips . | . . . . . . . . . . . . Time . | . . . . . . . . . . . . Total Robot Build Rating . | . . . . . . . . . . . . Part Schematics Acquired 2 | . . . . 2 . . . . . . . Parts Built 2 | . . . . . . . . . 2 . . Authchips . | . . . . . . . . . . . . Time 95 | . . . . . . . . . 95 . . Total Part Build Rating 10 | . . . . . . . . . 10 . . Part Studies Acquired 4 | . . . . 2 . 2 . . . . . Parts Repaired . | . . . . . . . . . . . . Time . | . . . . . . . . . . . . Parts Recycled . | . . . . . . . . . . . . Recycled Matter . | . . . . . . . . . . . . Retrieved Matter . | . . . . . . . . . . . . Retrieved Components . | . . . . . . . . . . . . Parts Scanalyzed 2 | . . . . 2 . . . . . . . Part Schematics Acquired 2 | . . . . 2 . . . . . . . Parts Damaged . | . . . . . . . . . . . . Bothacking | -11 -10 -10 -9 -8 -8 -8 -7 -7 -6 -5 -5 ------------ Run | Yrd Mat Min Mat Mat Gar Mat Fac Gar Fac Fac Upp Used RIF Installer 2 | . . . . . 1 . . 1 . . . Zone Cloak 1 | . . . . . . . . 1 . . . Robots Hacked . | . . . . . . . . . . . . Non-combat . | . . . . . . . . . . . . Combat . | . . . . . . . . . . . . Robot Hacks Applied . | . . . . . . . . . . . . Relay Couplers Released 15 | . . . . . 11 . . 4 . . . Machine Destruction 15 | . . . . . 11 . . 4 . . . Fabnet Peak Effective % . | . . . . . . . . . . . . Robots Rewired 9 | . . . . . 3 . . 6 . . . Allies Hacked . | . . . . . . . . . . . . Hacks Repelled . | . . . . . . . . . . . . Allies | -11 -10 -10 -9 -8 -8 -8 -7 -7 -6 -5 -5 -------- Run | Yrd Mat Min Mat Mat Gar Mat Fac Gar Fac Fac Upp Total Allies 9 | . . . . . 3 . . 6 . . . Largest Group 3 | . . . . . 3 . . 3 . . . Highest-Rated Group 48 | . . . . . 15 . . 48 . . . Highest-Rated Ally 16 | . . . . . 5 . . 16 . . . Total Orders . | . . . . . . . . . . . . Ally Attacks 24 | . . . . . 1 . . 23 . . . Total Damage 186 | . . . . . . . . 186 . . . Kills 3 | . . . . . . . . 3 . . . Allies Corrupted . | . . . . . . . . . . . . Allies Melted . | . . . . . . . . . . . . Intel | -11 -10 -10 -9 -8 -8 -8 -7 -7 -6 -5 -5 ------- Run | Yrd Mat Min Mat Mat Gar Mat Fac Gar Fac Fac Upp Active Infowar (turns) 1238 | 17 85 17 224 352 . . . . 292 251 . IFF 179 | . . . . . . . . . 179 . . Terrain 716 | . . . . 352 . . . . 113 251 . Seismic 343 | 17 85 17 224 . . . . . . . . Robot Analysis Total . | . . . . . . . . . . . . Derelict Logs Recovered . | . . . . . . . . . . . . Drone Launches . | . . . . . . . . . . . . Drone Recoveries . | . . . . . . . . . . . . Exploration | -11 -10 -10 -9 -8 -8 -8 -7 -7 -6 -5 -5 ------------- Run | Yrd Mat Min Mat Mat Gar Mat Fac Gar Fac Fac Upp Turns Passed 6044 | 135 85 17 611 611 732 427 110 1488 1452 366 10 Spaces Moved 2780 | 67 52 11 263 206 316 205 54 639 561 384 22 Core 180 | 2 . . . . . . . . 6 168 4 Treads 1517 | 65 52 11 263 53 269 205 54 545 . . . Legs 511 | . . . . 153 47 . . 94 217 . . Wheels 516 | . . . . . . . . . 338 178 . Hover . | . . . . . . . . . . . . Flight 56 | . . . . . . . . . . 38 18 Fastest Speed 40 | 50 160 160 160 180 163 158 158 161 115 40 45 Average Speed 163 | 157 160 160 184 205 166 158 158 183 175 83 45 Slowest Speed 1150 | 160 160 160 240 260 385 163 161 320 1150 200 50 Overloaded Moves . | . . . . . . . . . . . . Propulsion Burnouts . | . . . . . . . . . . . . Robots Hopped 3 | . . . . . . . . . . 3 . Potential Cave-ins . | . . . . . . . . . . . . Cave-ins Triggered . | . . . . . . . . . . . . Exploration Rate (%) 18 | 6 12 8 24 21 42 21 2 60 11 14 5 Regions Visited 11 Branch Regions 2 Pre-discovered Areas 1 | . . 1 . . . . . . . . . Known Exits Taken 4 | . . . . 1 . . 1 . 1 1 . Unknown Exits Taken 5 | 1 1 1 1 . . 1 . . . . . Scrap Searched 1 | . . 1 . . . . . . . . . Spaces Dug 12 | . . . . 3 2 . . . 7 . . Terrain Destroyed 126 | . . . . 3 2 . . 12 106 3 . Melee 9 | . . . . . 2 . . . 7 . . Projectile 30 | . . . . 3 . . . 12 12 3 . AOE 87 | . . . . . . . . . 87 . . Terrain Rammed . | . . . . . . . . . . . . Walls Destroyed . | . . . . . . . . . . . . Machines Disabled . | . . . . . . . . . . . . Actions | -11 -10 -10 -9 -8 -8 -8 -7 -7 -6 -5 -5 --------- Run | Yrd Mat Min Mat Mat Gar Mat Fac Gar Fac Fac Upp Total 3709 | 83 53 11 336 296 446 283 70 844 854 411 22 Wait 332 | . . . 9 15 46 45 2 80 132 3 . Move 2764 | 66 51 10 262 206 315 204 54 637 560 377 22 Hop 3 | . . . . . . . . . . 3 . Pick Up 84 | 5 1 1 20 8 8 6 3 11 16 5 . Fast Attach 47 | 7 1 . 4 4 7 1 . 4 18 1 . Attach 49 | . . . 3 7 6 1 2 6 15 9 . Detach 6 | . . . . . . . . 1 4 1 . Swap 26 | . . . 1 4 8 2 2 7 2 . . Drop 44 | . . . 7 1 5 7 2 10 9 3 . Fire 271 | 5 . . 30 50 36 17 5 56 63 9 . Melee 39 | . . . . . 8 . . 2 29 . . Ram . | . . . . . . . . . . . . Kick 7 | . . . . 1 . . . . 6 . . Crush . | . . . . . . . . . . . . Escape Stasis 8 | . . . . . . . . 8 . . . Rewire 29 | . . . . . 7 . . 22 . . . Trap . | . . . . . . . . . . . . Miscellaneous . | . . . . . . . . . . . . Route ------- -11/Scrapyard -10/Materials -10/Mines -9/Materials -8/Materials (discovered 2 exits: [*Sto] / Gar) -8/Garrison (discovered 2 exits: *Mat x2) -8/Materials -7/Factory -7/Garrison (discovered 2 exits: *Fac x2) -6/Factory -5/Factory -5/Upper Caves History --------- Turn | Location | Event 23 | -11/Scrapyard | Discovered new exit (range 15) 136 | -11/Scrapyard | Entered Materials 191 | -10/Materials | Discovered new exit (range 12) 221 | -10/Materials | Entered Mines 222 | -10/Mines | Assembled infested the area 222 | -10/Mines | Learned location of Storage (-8) 226 | -10/Mines | Discovered new exit (range 8) 238 | -10/Mines | Entered Materials 238 | -9/Materials | Evolved 2 slots: Utility x2 302 | -9/Materials | Build established: Mutant 495 | -9/Materials | Lost 3 parts (1p1u1w) 623 | -9/Materials | Discovered new exit (range 10) 849 | -9/Materials | Entered another Materials area 849 | -8/Materials | Evolved 2 slots: Propulsion x1, Weapon x1 934 | -8/Materials | Discovered new exit (range 14) 1141 | -8/Materials | Lost 5 parts (1p1n1u2w) 1460 | -8/Materials | Identified exit to Garrison 1460 | -8/Materials | Entered Garrison 1482 | -8/Garrison | Triggered checkpoint 1565 | -8/Garrison | Destroyed 7 combat bots 1575 | -8/Garrison | Lost 7 parts (1p3n3w) 1698 | -8/Garrison | Installed Relay Interface Framework 1737 | -8/Garrison | Garrison Relay disabled 1784 | -8/Garrison | Triggered checkpoint 1828 | -8/Garrison | Garrison Relay disabled 1892 | -8/Garrison | Triggered checkpoint 1949 | -8/Garrison | Build established: Scavenger-Tank 1984 | -8/Garrison | Triggered checkpoint 2048 | -8/Garrison | Garrison Relay disabled 2098 | -8/Garrison | Discovered new exit (range 13) 2150 | -8/Garrison | Discovered new exit (range 8) 2188 | -8/Garrison | Triggered checkpoint 2192 | -8/Garrison | Entered Materials 2220 | -8/Materials | Lost 3 allies 2567 | -8/Materials | Discovered new exit (range 3) 2619 | -8/Materials | Entered Factory 2619 | -7/Factory | Evolved 2 slots: Propulsion x1, Utility x1 2729 | -7/Factory | Identified exit to Garrison 2729 | -7/Factory | Entered Garrison 2744 | -7/Garrison | Expanded RIF knowledge: Zone Cloak 2819 | -7/Garrison | Triggered checkpoint 2880 | -7/Garrison | Garrison Relay disabled 2937 | -7/Garrison | Triggered checkpoint 3025 | -7/Garrison | Build established: Hacker-Tank 3263 | -7/Garrison | Lost 3 allies 3489 | -7/Garrison | Triggered checkpoint 3525 | -7/Garrison | Triggered checkpoint 3572 | -7/Garrison | Discovered new exit (range 10) 3577 | -7/Garrison | Triggered checkpoint 3703 | -7/Garrison | Triggered checkpoint 3775 | -7/Garrison | Triggered checkpoint 3853 | -7/Garrison | Lost 4 parts (1p2n1u) 3985 | -7/Garrison | Triggered checkpoint 4180 | -7/Garrison | Discovered new exit (range 11) 4217 | -7/Garrison | Entered Factory 4217 | -6/Factory | Evolved 2 slots: Propulsion x1, Utility x1 4465 | -6/Factory | Lost 4 parts (2u2w) 4567 | -6/Factory | Lost 14 parts (1p6n5u2w) 4576 | -6/Factory | Core integrity fell below 50% 4704 | -6/Factory | Build established: Mutant 4773 | -6/Factory | Fabricated Adv. Heat Sink (x2) 5313 | -6/Factory | Core integrity fell below 20% 5373 | -6/Factory | Build established: Scavenger-Mutant 5567 | -6/Factory | Discovered new exit (range 15) 5587 | -6/Factory | Identified exit to Factory 5669 | -6/Factory | Entered another Factory area 5669 | -5/Factory | Evolved 2 slots: Utility x2 5901 | -5/Factory | System corruption reached 10% 5934 | -5/Factory | Core integrity fell below 50% 5970 | -5/Factory | Lost 17 parts (1p7n5u4w) 6008 | -5/Factory | Core integrity fell below 20% 6027 | -5/Factory | Discovered new exit (range 15) 6033 | -5/Factory | Identified exit to Upper Caves 6035 | -5/Factory | Entered Upper Caves 6045 | -5/Upper Caves | Destroyed by S-27 Virus with Autogun Last Messages --------------- recycling unit. 06006_ Nuclear Reactor explodes. 06006_ K-01 Serf cleans the Power Conduit. 06016_ The unstable cave ceiling collapses. 06022_ System corrupted: Heat flow error (+149). 06027_ EXIT=FOUND 06029_ ALERT: Potential suspicious activity detected, Programmers report to Factory Zone 4D. 06033_ EXIT=IDENTIFIED: UPPER CAVES 06034_ Acquired Antigrav System. LOCATION=UPPER CAVES GOAL=ESCAPE 06036_ C-30 ARC bursts open, deploying its payload. 06036_ S-27 Virus unfolds itself. 06039_ Z2-PDD(S) destroyed. 06043_ 2ACZ&,9OXVJLXHQJSILYM 4HUQ#= 06043_ Field Propulsion Drive destroyed. 06043_ S-27 Virus destroyed. Map ----- +----------------------------------------------------+ | ???????????????????????????????????????????? | | ???????????????????????????????????????????? | | ???????????????????????????????????????????? | | ???????????????????????????????????????????? | | ???????????????????????????????????????????? | | ???????????????????????????????????????????? | | ???????????????????????????????????????????? | | ???????????????????????????????????????????? | | ???????????????????????????????????????????? | | ???????????????????????????????????????????? | | ???????????????????????????????????????????? | | ???????????????????????????????????????????? | | ???????????????????????????????????????????? | | ???????????????????????????????????????????? | | ???????????????????????????????????????????? | | ???????????????????????????????????????????? | | ???????????????????????????????????????????? | | ?????????????????????###???????????????????? | | ?????????????????????# ##??????????????????? | | ?????????????????????# ###????????????????? | | ????????????????????## ##???????????????? | | ???????????????????## #???????????????? | | ???????????????????# ###???????????????? | | ???????????????????## #?????????????????? | | ????????????????????## ##????????????????? | | ????????????????????## @##???????????????? | | ???????????????????## ##??????????????? | | ???????????????????# #??????????????? | | ??????????????????## #??????????????? | | ??????????????????# #??????????????? | | ??????????????????#%= #??????????????? | | ?????????????????##* #??????????????? | | ???????????????### #??????????????? | | ??????????????## #??????????????? | | ??????????##### #??????????????? | | ??????????# s #??????????????? | | ??????????# s ##??????????????? | | ??????????# ## s ##???????????????? | | ??????????# ??## % #????????????????? | | ??????????#????# ! #????????????????? | | ??????????????%" #????????????????? | | ???????????? " #????????????????? | | ?????????? ### #????????????????? | | ?????????### #??###### ##????????????????? | | ???????????###?????????###?????????????????? | | ???????????????????????????????????????????? | | ???????????????????????????????????????????? | | ???????????????????????????????????????????? | | ???????????????????????????????????????????? | | ???????????????????????????????????????????? | +----------------------------------------------------+ Best States ------------- Heat Dissipation 59 Energy Generation 21 Energy Capacity 290 Matter Stores 300 Matter Capacity 300 Sight Range 16 Terrain Scan Range 20 Terrain Scan Density 10 Armor Coverage 450 Propulsion Shielding 33 Phase Shifting 15 Evasion (%) 61 Melee Accuracy 8 Target Analysis 5 Recoil Reduction 4 Offensive Hacking 10 Defensive Hacking 10 Item Schematics ----------------- System Shield | -8/Materials | Scanalyzed Adv. Weight Redist. System | -8/Materials | Scanalyzed Robot Schematics ------------------ None Fabricated ------------ Adv. Heat Sink | x2 | -6/Factory | Preloaded Repaired ---------- Nothing Studied --------- Arm. Treads | -8/Materials | Hacked Aluminum Leg | -8/Materials | Hacked Lgt. Treads | -8/Materials | Hacked Autogun | -8/Materials | Hacked Alien Tech Used ----------------- None Achievements -------------- A Problem For Future Me Join The Dark Side Throw Away The Key You Will Be Upgraded Challenges ------------ None Game ------ Seed DrainedConcussiveHammer Manual? 0 Play Time 01:04:44 Cumulative 122.3 hours Start 2025.10.29 @ 18:21:01 End 2025.10.29 @ 19:29:12 Sessions 1 Manual Loads 0 Difficulty Rogue Special Mode None Game No. 64 Rogue 59 Adventurer 5 Explorer 0 Win Type - Total 3 Types 2/0/1/0/0/0/0/0/0/0 Lore% 61 Gallery% 50 Achievement% 35 Wizard Run 0 Options --------- Layout 1 ASCII 0 Keyboard 0 Movement Numpad Keybinds 1 Fullscreen 1 Font 24/Smallcaps Map View 50x35 Zoom Use 0% Tactical HUD 1 Map Filters NONE Filters NONE Steam 1 RUN: 0f313e4f-5e16-4a44-b759-fcd9e406e12b